fUST/lending_fUST_20250909
["ID","MTS","AMOUNT","RATE_DAILY","PERIOD"]
[384441368,1757416250154,-151.0,0.00014246,2]
[384441370,1757416250163,-200.2,0.00014246,2]
[384441372,1757416250173,-157.0,0.00014246,2]
[384441374,1757416250182,-480.0,0.00014246,2]
[384441376,1757416250191,-480.0,0.00014246,2]
[384441378,1757416250200,-157.0,0.00014246,2]
[384441380,1757416250210,-533.06,0.00014246,2]
[384441382,1757416250219,-157.0,0.00014246,2]
[384441384,1757416250229,-157.0,0.00014246,2]
[384441386,1757416250239,-480.0,0.00014246,2]
[384441388,1757416250248,-480.0,0.00014246,2]
[384441390,1757416250257,-480.0,0.00014246,2]
[384441392,1757416250266,-480.0,0.00014246,2]
[384441394,1757416250276,-480.0,0.00014246,2]
[384441396,1757416250285,-151.0,0.00014246,2]
[384441398,1757416250295,-151.0,0.00014246,2]
[384441399,1757416250305,-151.0,0.00014246,2]
[384441401,1757416250314,-151.0,0.00014246,2]
[384441403,1757416250324,-599.60422857,0.00014246,2]
[384441405,1757416250333,-2453.64,0.00014246,2]
[384441407,1757416250343,-151.0,0.00014246,2]
[384441409,1757416250352,-151.0,0.00014246,2]
[384441411,1757416250361,-151.0,0.00014246,2]
[384441413,1757416250371,-423.08649612,0.00014246,2]
[384441415,1757416250380,-482.46,0.00014246,2]
[384441417,1757416250390,-480.0,0.00014246,2]
[384441419,1757416250399,-480.0,0.00014246,2]
[384441421,1757416250407,-480.0,0.00014246,2]
[384441423,1757416250417,-480.0,0.00014246,2]
[384441425,1757416250426,-1143.72,0.00014246,2]
[384441427,1757416250435,-5324.89,0.00014246,2]
[384441429,1757416250445,-67.10014887,0.00014246,2]
[384441433,1757416250468,-432.89985113,0.00014246,2]
[384441435,1757416250483,-692.82142625,0.00014264,2]
[384441825,1757416286983,1000.0,0.00018594,20]
[384441828,1757416452451,960.0,0.00013291,2]
[384441830,1757416550164,275.74020039,0.00013251,2]
[384441862,1757416660529,1500.0,0.00013255,2]
[384441863,1757416712594,-740.69492543,0.00013327,2]
[384441866,1757416876562,740.69492543,0.00013194,2]
[384441875,1757416899105,740.69492543,0.00013194,2]
[384441876,1757416921647,740.69492543,0.00013194,2]
[384441877,1757416931666,740.69492543,0.00013194,2]
[384441882,1757417148533,740.69492543,0.00013194,2]
[384441883,1757417158275,740.69492543,0.00013194,2]
[384441914,1757417377452,2655.15275709,0.00013194,2]
[384441915,1757417402736,523.95495963,0.00013292,2]
[384441917,1757417426541,523.95495963,0.00013292,2]
[384441932,1757417431842,-523.95495963,0.00013426,2]
[384441934,1757417431852,-523.95495963,0.00013562,2]
[384441935,1757417431862,-740.69492543,0.00013595,2]
[384441936,1757417431871,-1914.45783166,0.00013598,2]
[384441937,1757417431880,-435.00641185,0.00013624,2]
[384441938,1757417431890,-242.45495503,0.00013654,2]
[384441939,1757417431901,-1200.0,0.00013656,2]
[384441940,1757417431910,-22501.17789192,0.00013657,2]
[384441941,1757417431922,-549.30598622,0.00013657,2]
[384441942,1757417431938,-704.25000015,0.00013657,2]
[384441944,1757417431950,-660.63271462,0.00013657,2]
[384441946,1757417431962,-744.6130876,0.00013657,2]
[384441949,1757417431980,-740.19601894,0.00013657,2]
[384441954,1757417435106,523.95495963,0.00013292,2]
[384441957,1757417437747,-351.27555648,0.00013657,2]
[384441958,1757417437853,-345.0,0.00013657,2]
[384442012,1757417440001,-6346.52249796,0.00013657,2]
[384442224,1757417648783,5082.67017998,0.00013251,2]
[384442225,1757417673675,1500.0,0.0001325,2]
[384442226,1757417696101,1500.0,0.0001325,2]
[384442228,1757417719250,1500.0,0.0001325,2]
[384442229,1757417743016,1500.0,0.0001325,2]
[384442230,1757417751307,243.361265,0.00013183,2]
[384442233,1757417765528,1500.0,0.0001325,2]
[384442234,1757417790344,178.47726359,0.0001325,2]
[384442235,1757417842865,1500.0,0.0001325,2]
[384442238,1757417965346,214.22075784,0.00013222,2]
[384442256,1757418049231,458.46058972,0.00013222,2]
[384442259,1757418057767,168.0,0.00013259,2]
[384442260,1757418075081,168.0,0.00013259,2]
[384442261,1757418083400,168.0,0.00013259,2]
[384442262,1757418091794,168.0,0.00013259,2]
[384442263,1757418100502,168.0,0.00013259,2]
[384442264,1757418109337,168.0,0.00013259,2]
[384442265,1757418125488,168.0,0.00013259,2]
[384442266,1757418133526,168.0,0.00013259,2]
[384442268,1757418149279,168.0,0.00013259,2]
[384442269,1757418157788,168.0,0.00013259,2]
[384442270,1757418173868,168.0,0.00013259,2]
[384442271,1757418182964,168.0,0.00013259,2]
[384442272,1757418199522,168.0,0.00013259,2]
[384442273,1757418224331,168.0,0.00013259,2]
[384442274,1757418248217,168.0,0.00013259,2]
[384442275,1757418271906,168.0,0.00013259,2]
[384442276,1757418295598,168.0,0.00013259,2]
[384442277,1757418304593,168.0,0.00013259,2]
[384442279,1757418313507,168.0,0.00013259,2]
[384442280,1757418322653,168.0,0.00013259,2]
[384442282,1757418346725,168.0,0.00013259,2]
[384442283,1757418370603,168.0,0.00013259,2]
[384442284,1757418394311,168.0,0.00013259,2]
[384442285,1757418418151,168.0,0.00013259,2]
[384442287,1757418441036,168.0,0.00013259,2]
[384442289,1757418464089,168.0,0.00013259,2]
[384442290,1757418487225,168.0,0.00013259,2]
[384442291,1757418511157,168.0,0.00013259,2]
[384442292,1757418527625,168.0,0.00013259,2]
[384442294,1757418535770,168.0,0.00013259,2]
[384442295,1757418544276,168.0,0.00013259,2]
[384442296,1757418553745,168.0,0.00013259,2]
[384442297,1757418562369,168.0,0.00013259,2]
[384442298,1757418579523,168.0,0.00013259,2]
[384442299,1757418588772,168.0,0.00013259,2]
[384442300,1757418605567,168.0,0.00013259,2]
[384442301,1757418614834,168.0,0.00013259,2]
[384442302,1757418631452,168.0,0.00013259,2]
[384442336,1757418636929,-168.0,0.00013393,2]
[384442337,1757418636938,-260.48165985,0.00013487,2]
[384442338,1757418636950,-197.97892987,0.00013487,2]
[384442339,1757418636959,-938.73738509,0.00013498,2]
[384442340,1757418636969,-938.73738509,0.00013559,2]
[384442341,1757418636979,-1200.0,0.00013584,2]
[384442342,1757418636988,-300.0,0.00013585,2]
[384442343,1757418636998,-300.0,0.00013585,2]
[384442344,1757418637007,-300.0,0.00013585,2]
[384442345,1757418637017,-300.0,0.00013585,2]
[384442346,1757418637028,-300.0,0.00013585,2]
[384442348,1757418637038,-1200.0,0.00013586,2]
[384442349,1757418637047,-235.52658663,0.00013586,2]
[384442350,1757418637057,-500.0,0.00013586,2]
[384442351,1757418637066,-500.0,0.00013586,2]
[384442352,1757418637075,-500.0,0.00013586,2]
[384442353,1757418637085,-469.86985753,0.00013586,2]
[384442354,1757418637094,-581.37060007,0.00013586,2]
[384442355,1757418637104,-205.00764747,0.00013586,2]
[384442356,1757418637114,-500.0,0.00013586,2]
[384442357,1757418637123,-500.0,0.00013586,2]
[384442358,1757418637132,-323.31413719,0.00013586,2]
[384442359,1757418637141,-500.0,0.00013586,2]
[384442360,1757418637150,-500.0,0.00013586,2]
[384442361,1757418637159,-500.0,0.00013586,2]
[384442362,1757418637169,-500.0,0.00013586,2]
[384442363,1757418637178,-500.0,0.00013586,2]
[384442364,1757418637187,-500.0,0.00013586,2]
[384442365,1757418637199,-230.35563118,0.00013586,2]
[384442366,1757418637209,-500.0,0.00013586,2]
[384442367,1757418637220,-500.0,0.00013586,2]
[384442368,1757418637229,-500.0,0.00013586,2]
[384442369,1757418637241,-500.0,0.00013586,2]
[384442370,1757418637251,-500.0,0.00013586,2]
[384442371,1757418637262,-500.0,0.00013586,2]
[384442372,1757418637271,-500.0,0.00013586,2]
[384442373,1757418637280,-500.0,0.00013586,2]
[384442374,1757418637290,-500.0,0.00013586,2]
[384442375,1757418637299,-500.0,0.00013586,2]
[384442376,1757418637309,-500.0,0.00013586,2]
[384442377,1757418637319,-500.0,0.00013586,2]
[384442378,1757418637329,-500.0,0.00013586,2]
[384442379,1757418637339,-500.0,0.00013586,2]
[384442380,1757418637348,-500.0,0.00013586,2]
[384442381,1757418637357,-500.0,0.00013586,2]
[384442382,1757418637366,-432.82083146,0.00013586,2]
[384442383,1757418637377,-500.0,0.00013586,2]
[384442384,1757418637386,-586.57800582,0.00013586,2]
[384442385,1757418637396,-500.0,0.00013586,2]
[384442386,1757418637406,-500.0,0.00013586,2]
[384442387,1757418637416,-500.0,0.00013586,2]
[384442388,1757418637425,-500.0,0.00013586,2]
[384442390,1757418637435,-500.0,0.00013586,2]
[384442391,1757418637444,-500.0,0.00013586,2]
[384442392,1757418637453,-500.0,0.00013586,2]
[384442393,1757418637463,-500.0,0.00013586,2]
[384442394,1757418637472,-500.0,0.00013586,2]
[384442395,1757418637481,-500.0,0.00013586,2]
[384442396,1757418637491,-500.0,0.00013586,2]
[384442397,1757418637501,-500.0,0.00013586,2]
[384442398,1757418637511,-500.0,0.00013586,2]
[384442399,1757418637519,-500.0,0.00013586,2]
[384442400,1757418637529,-500.0,0.00013586,2]
[384442401,1757418637540,-500.0,0.00013586,2]
[384442402,1757418637552,-500.0,0.00013586,2]
[384442403,1757418637561,-500.0,0.00013586,2]
[384442404,1757418637570,-500.0,0.00013586,2]
[384442405,1757418637579,-500.0,0.00013586,2]
[384442406,1757418637589,-500.0,0.00013586,2]
[384442408,1757418637598,-500.0,0.00013586,2]
[384442409,1757418637607,-500.0,0.00013586,2]
[384442410,1757418637618,-500.0,0.00013586,2]
[384442411,1757418637627,-500.0,0.00013586,2]
[384442412,1757418637636,-500.0,0.00013586,2]
[384442413,1757418637646,-500.0,0.00013586,2]
[384442414,1757418637655,-500.0,0.00013586,2]
[384442415,1757418637664,-500.0,0.00013586,2]
[384442416,1757418637674,-500.0,0.00013586,2]
[384442417,1757418637684,-500.0,0.00013586,2]
[384442418,1757418637696,-500.0,0.00013586,2]
[384442419,1757418637707,-500.0,0.00013586,2]
[384442420,1757418637716,-500.0,0.00013586,2]
[384442421,1757418637726,-500.0,0.00013586,2]
[384442422,1757418637735,-500.0,0.00013586,2]
[384442423,1757418637744,-500.0,0.00013586,2]
[384442424,1757418637754,-500.0,0.00013586,2]
[384442425,1757418637763,-500.0,0.00013586,2]
[384442426,1757418637772,-500.0,0.00013586,2]
[384442427,1757418637782,-500.0,0.00013586,2]
[384442428,1757418637791,-500.0,0.00013586,2]
[384442429,1757418637801,-50000.0,0.00013587,2]
[384442430,1757418637811,-573.33782914,0.00013591,2]
[384442431,1757418637820,-197.65942433,0.00013591,2]
[384442432,1757418637829,-17108.78423929,0.00013592,2]
[384442433,1757418637843,-1315.14796789,0.00013592,2]
[384442434,1757418637854,-445.29286803,0.00013592,2]
[384442435,1757418637869,-16959.64100866,0.00013592,2]
[384442436,1757418637879,-650.542962,0.00013592,2]
[384442709,1757418643229,-769.21319221,0.00013456,2]
[384442710,1757418643239,-27682.9847004,0.00013592,2]
[384442711,1757418643250,-490.15138203,0.00013592,2]
[384442712,1757418643282,-2601.87916527,0.00013592,2]
[384442970,1757418646051,-2230.55386598,0.00013592,2]
[384442982,1757418646158,-2599.81,0.00013592,2]
[384442989,1757418646211,-811.90880739,0.00013592,2]
[384442991,1757418646223,-55867.84071015,0.00013592,2]
[384442993,1757418646232,-1408.10919927,0.00013598,2]
[384442995,1757418646242,-938.73738509,0.0001362,2]
[384442997,1757418646251,-166.0,0.00013657,2]
[384442999,1757418646261,-1304.0,0.00013657,2]
[384443002,1757418646270,-544.0,0.00013657,2]
[384443005,1757418646279,-1304.0,0.00013657,2]
[384443007,1757418646289,-272.0,0.00013657,2]
[384443009,1757418646298,-1304.0,0.00013657,2]
[384443011,1757418646308,-306.02484507,0.00013657,2]
[384443013,1757418646320,-1304.0,0.00013657,2]
[384443015,1757418646329,-1304.0,0.00013657,2]
[384443017,1757418646339,-1304.0,0.00013657,2]
[384443019,1757418646348,-1304.0,0.00013657,2]
[384443021,1757418646357,-1304.0,0.00013657,2]
[384443023,1757418646368,-1088.0,0.00013657,2]
[384443025,1757418646376,-213.87002253,0.00013673,2]
[384443027,1757418646385,-644.80940494,0.00013673,2]
[384443029,1757418646395,-500.0,0.00013673,2]
[384443031,1757418646404,-500.0,0.00013673,2]
[384443033,1757418646413,-500.0,0.00013673,2]
[384443035,1757418646422,-500.0,0.00013673,2]
[384443037,1757418646431,-530.79566296,0.00013677,2]
[384443039,1757418646440,-417.15472785,0.00013677,2]
[384443041,1757418646449,-160.0,0.00013677,2]
[384443043,1757418646458,-160.0,0.00013677,2]
[384443045,1757418646468,-217.65034598,0.00013677,2]
[384443047,1757418646477,-233.05759179,0.00013677,2]
[384443049,1757418646485,-203.28455737,0.00013677,2]
[384443051,1757418646494,-160.0,0.00013677,2]
[384443053,1757418646503,-160.0,0.00013677,2]
[384443055,1757418646512,-846.80158213,0.00013677,2]
[384443057,1757418646521,-160.0,0.00013677,2]
[384443059,1757418646530,-938.73738509,0.0001368,2]
[384443061,1757418646540,-500.0,0.00013698,2]
[384443063,1757418646553,-480.90261047,0.00013698,2]
[384443065,1757418646563,-480.0,0.00013698,2]
[384443067,1757418646572,-483.70921941,0.00013698,2]
[384443069,1757418646581,-480.0,0.00013698,2]
[384443071,1757418646591,-480.77244762,0.00013698,2]
[384443073,1757418646601,-480.0,0.00013698,2]
[384443074,1757418646612,-480.0,0.00013698,2]
[384443076,1757418646622,-480.0,0.00013698,2]
[384443078,1757418646632,-480.0,0.00013698,2]
[384443080,1757418646641,-487.78128368,0.00013698,2]
[384443082,1757418646651,-480.0,0.00013698,2]
[384443085,1757418646660,-480.0,0.00013698,2]
[384443087,1757418646669,-480.0,0.00013698,2]
[384443089,1757418646678,-480.0,0.00013698,2]
[384443090,1757418646687,-480.0,0.00013698,2]
[384443093,1757418646697,-480.0,0.00013698,2]
[384443095,1757418646707,-480.0,0.00013698,2]
[384443096,1757418646716,-480.0,0.00013698,2]
[384443098,1757418646725,-480.0,0.00013698,2]
[384443100,1757418646734,-480.0,0.00013698,2]
[384443102,1757418646743,-384.92192294,0.00013698,2]
[384443104,1757418646753,-480.0,0.00013698,2]
[384443106,1757418646762,-480.0,0.00013698,2]
[384443108,1757418646771,-490.52859399,0.00013698,2]
[384443110,1757418646780,-480.0,0.00013698,2]
[384443112,1757418646789,-480.0,0.00013698,2]
[384443114,1757418646799,-480.0,0.00013698,2]
[384443116,1757418646809,-536.33,0.00013698,2]
[384443118,1757418646819,-500.0,0.00013698,2]
[384443120,1757418646828,-480.0,0.00013698,2]
[384443122,1757418646837,-480.0,0.00013698,2]
[384443124,1757418646847,-480.0,0.00013698,2]
[384443126,1757418646856,-480.0,0.00013698,2]
[384443128,1757418646865,-480.0,0.00013698,2]
[384443130,1757418646875,-480.0,0.00013698,2]
[384443132,1757418646884,-480.0,0.00013698,2]
[384443134,1757418646893,-480.0,0.00013698,2]
[384443136,1757418646903,-480.0,0.00013698,2]
[384443138,1757418646912,-480.0,0.00013698,2]
[384443140,1757418646922,-484.80241787,0.00013698,2]
[384443142,1757418646931,-261.36422178,0.00013698,2]
[384443144,1757418646941,-480.0,0.00013698,2]
[384443146,1757418646950,-341.44442644,0.00013698,2]
[384443148,1757418646961,-480.0,0.00013698,2]
[384443150,1757418646970,-480.0,0.00013698,2]
[384443152,1757418646979,-481.38970939,0.00013698,2]
[384443154,1757418646988,-191.61698532,0.00013698,2]
[384443156,1757418646997,-480.0,0.00013698,2]
[384443158,1757418647007,-415.94817367,0.00013698,2]
[384443160,1757418647016,-480.0,0.00013698,2]
[384443162,1757418647025,-497.99,0.00013698,2]
[384443164,1757418647034,-480.0,0.00013698,2]
[384443166,1757418647044,-480.0,0.00013698,2]
[384443168,1757418647053,-151.0,0.00013698,2]
[384443170,1757418647062,-500.0,0.00013698,2]
[384443172,1757418647071,-500.0,0.00013698,2]
[384443174,1757418647080,-500.0,0.00013698,2]
[384443176,1757418647090,-500.0,0.00013698,2]
[384443178,1757418647099,-480.0,0.00013698,2]
[384443180,1757418647108,-316.96453978,0.00013698,2]
[384443182,1757418647118,-480.0,0.00013698,2]
[384443184,1757418647127,-480.0,0.00013698,2]
[384443186,1757418647137,-480.0,0.00013698,2]
[384443188,1757418647147,-480.0,0.00013698,2]
[384443190,1757418647156,-321.60384679,0.00013698,2]
[384443192,1757418647164,-462.69222254,0.00013698,2]
[384443194,1757418647173,-480.0,0.00013698,2]
[384443196,1757418647182,-480.0,0.00013698,2]
[384443198,1757418647191,-480.0,0.00013698,2]
[384443200,1757418647200,-480.0,0.00013698,2]
[384443202,1757418647209,-151.0,0.00013698,2]
[384443204,1757418647218,-487.66748101,0.00013698,2]
[384443206,1757418647227,-480.0,0.00013698,2]
[384443208,1757418647236,-480.0,0.00013698,2]
[384443210,1757418647245,-480.0,0.00013698,2]
[384443212,1757418647254,-480.0,0.00013698,2]
[384443214,1757418647263,-565.21877005,0.00013698,2]
[384443216,1757418647271,-480.0,0.00013698,2]
[384443218,1757418647280,-480.0,0.00013698,2]
[384443220,1757418647289,-151.0,0.00013698,2]
[384443222,1757418647299,-185.007786,0.00013698,2]
[384443224,1757418647308,-480.0,0.00013698,2]
[384443226,1757418647318,-531.04274788,0.00013698,2]
[384443227,1757418647327,-480.0,0.00013698,2]
[384443228,1757418647337,-483.11884981,0.00013698,2]
[384443229,1757418647346,-480.0,0.00013698,2]
[384443230,1757418647356,-480.0,0.00013698,2]
[384443231,1757418647367,-480.0,0.00013698,2]
[384443233,1757418647376,-480.0,0.00013698,2]
[384443235,1757418647386,-480.0,0.00013698,2]
[384443237,1757418647395,-480.0,0.00013698,2]
[384443239,1757418647404,-480.0,0.00013698,2]
[384443241,1757418647414,-480.0,0.00013698,2]
[384443243,1757418647423,-480.0,0.00013698,2]
[384443245,1757418647432,-480.0,0.00013698,2]
[384443247,1757418647441,-480.0,0.00013698,2]
[384443249,1757418647450,-480.0,0.00013698,2]
[384443251,1757418647460,-480.0,0.00013698,2]
[384443253,1757418647468,-480.0,0.00013698,2]
[384443255,1757418647477,-480.0,0.00013698,2]
[384443257,1757418647486,-400.0,0.00013698,2]
[384443259,1757418647495,-480.0,0.00013698,2]
[384443261,1757418647504,-480.0,0.00013698,2]
[384443263,1757418647513,-756.52,0.00013698,2]
[384443265,1757418647522,-480.0,0.00013698,2]
[384443267,1757418647531,-483.24766933,0.00013698,2]
[384443269,1757418647544,-480.0,0.00013698,2]
[384443271,1757418647555,-480.0,0.00013698,2]
[384443273,1757418647565,-151.0,0.00013698,2]
[384443275,1757418647574,-480.0,0.00013698,2]
[384443277,1757418647583,-151.0,0.00013698,2]
[384443279,1757418647593,-480.0,0.00013698,2]
[384443281,1757418647602,-480.0,0.00013698,2]
[384443283,1757418647611,-480.0,0.00013698,2]
[384443285,1757418647622,-787.86,0.00013698,2]
[384443287,1757418647632,-151.0,0.00013698,2]
[384443289,1757418647641,-151.0,0.00013698,2]
[384443291,1757418647649,-151.0,0.00013698,2]
[384443293,1757418647659,-480.0,0.00013698,2]
[384443295,1757418647668,-272.890014,0.00013698,2]
[384443297,1757418647677,-480.0,0.00013698,2]
[384443299,1757418647686,-480.0,0.00013698,2]
[384443301,1757418647695,-480.0,0.00013698,2]
[384443303,1757418647704,-626.28,0.00013698,2]
[384443305,1757418647713,-480.0,0.00013698,2]
[384443307,1757418647723,-480.0,0.00013698,2]
[384443309,1757418647732,-480.0,0.00013698,2]
[384443311,1757418647740,-380.832,0.00013698,2]
[384443313,1757418647750,-484.0484773,0.00013698,2]
[384443315,1757418647759,-480.0,0.00013698,2]
[384443317,1757418647769,-153.071325,0.00013698,2]
[384443319,1757418647777,-480.0,0.00013698,2]
[384443321,1757418647787,-699.98,0.00013698,2]
[384443323,1757418647796,-151.0,0.00013698,2]
[384443325,1757418647805,-486.38592804,0.00013698,2]
[384443327,1757418647814,-480.0,0.00013698,2]
[384443329,1757418647823,-480.0,0.00013698,2]
[384443331,1757418647833,-482.34034061,0.00013698,2]
[384443333,1757418647842,-482.81032973,0.00013698,2]
[384443335,1757418647851,-480.0,0.00013698,2]
[384443337,1757418647860,-480.0,0.00013698,2]
[384443339,1757418647869,-627.62659272,0.00013698,2]
[384443341,1757418647879,-480.0,0.00013698,2]
[384443343,1757418647888,-480.0,0.00013698,2]
[384443345,1757418647902,-480.0,0.00013698,2]
[384443347,1757418647912,-480.0,0.00013698,2]
[384443349,1757418647921,-480.0,0.00013698,2]
[384443351,1757418647931,-480.0,0.00013698,2]
[384443353,1757418647940,-377.71860854,0.00013698,2]
[384443355,1757418647949,-480.0,0.00013698,2]
[384443357,1757418647959,-483.74815941,0.00013698,2]
[384443359,1757418647968,-284.300809,0.00013698,2]
[384443361,1757418647978,-480.0,0.00013698,2]
[384443363,1757418647987,-538.55356721,0.00013698,2]
[384443365,1757418647997,-480.0,0.00013698,2]
[384443367,1757418648007,-480.0,0.00013698,2]
[384443369,1757418648017,-480.0,0.00013698,2]
[384443371,1757418648027,-167.565293,0.00013698,2]
[384443373,1757418648037,-480.0,0.00013698,2]
[384443375,1757418648046,-167.78528225,0.00013698,2]
[384443377,1757418648056,-151.0,0.00013698,2]
[384443379,1757418648066,-151.0,0.00013698,2]
[384443381,1757418648076,-151.0,0.00013698,2]
[384443383,1757418648086,-480.0,0.00013698,2]
[384443385,1757418648096,-151.0,0.00013698,2]
[384443387,1757418648106,-480.0,0.00013698,2]
[384443389,1757418648115,-514.4,0.00013698,2]
[384443391,1757418648125,-570.12307661,0.00013698,2]
[384443393,1757418648136,-480.0,0.00013698,2]
[384443395,1757418648145,-480.0,0.00013698,2]
[384443397,1757418648155,-480.0,0.00013698,2]
[384443400,1757418648165,-372.76181192,0.00013698,2]
[384443401,1757418648174,-480.0,0.00013698,2]
[384443403,1757418648184,-480.0,0.00013698,2]
[384443405,1757418648193,-480.0,0.00013698,2]
[384443408,1757418648204,-619.64,0.00013698,2]
[384443409,1757418648214,-617.4,0.00013698,2]
[384443411,1757418648223,-480.0,0.00013698,2]
[384443413,1757418648232,-480.0,0.00013698,2]
[384443415,1757418648243,-480.0,0.00013698,2]
[384443417,1757418648252,-480.0,0.00013698,2]
[384443419,1757418648262,-480.0,0.00013698,2]
[384443421,1757418648271,-480.0,0.00013698,2]
[384443423,1757418648280,-509.74625437,0.00013698,2]
[384443425,1757418648290,-480.0,0.00013698,2]
[384443427,1757418648300,-480.0,0.00013698,2]
[384443429,1757418648309,-605.78,0.00013698,2]
[384443431,1757418648319,-480.0,0.00013698,2]
[384443433,1757418648329,-481.32854049,0.00013698,2]
[384443435,1757418648338,-480.0,0.00013698,2]
[384443437,1757418648347,-480.0,0.00013698,2]
[384443439,1757418648357,-480.0,0.00013698,2]
[384443441,1757418648366,-480.0,0.00013698,2]
[384443443,1757418648376,-480.0,0.00013698,2]
[384443445,1757418648385,-485.84,0.00013698,2]
[384443447,1757418648394,-151.0,0.00013698,2]
[384443449,1757418648403,-190.13547588,0.00013698,2]
[384443451,1757418648412,-480.0,0.00013698,2]
[384443453,1757418648422,-357.09168413,0.00013698,2]
[384443455,1757418648431,-480.0,0.00013698,2]
[384443456,1757418648441,-530.36517927,0.00013698,2]
[384443458,1757418648449,-480.0,0.00013698,2]
[384443460,1757418648459,-420.74100698,0.00013698,2]
[384443462,1757418648468,-151.0,0.00013698,2]
[384443464,1757418648477,-151.0,0.00013698,2]
[384443466,1757418648487,-480.0,0.00013698,2]
[384443468,1757418648496,-153.261702,0.00013698,2]
[384443470,1757418648505,-480.0,0.00013698,2]
[384443472,1757418648515,-480.0,0.00013698,2]
[384443474,1757418648527,-480.0,0.00013698,2]
[384443476,1757418648538,-480.0,0.00013698,2]
[384443478,1757418648551,-480.0,0.00013698,2]
[384443480,1757418648563,-480.0,0.00013698,2]
[384443482,1757418648573,-153.871515,0.00013698,2]
[384443484,1757418648583,-480.0,0.00013698,2]
[384443486,1757418648592,-480.0,0.00013698,2]
[384443488,1757418648601,-151.0,0.00013698,2]
[384443490,1757418648609,-151.0,0.00013698,2]
[384443492,1757418648618,-480.0,0.00013698,2]
[384443494,1757418648628,-480.0,0.00013698,2]
[384443495,1757418648638,-875.23,0.00013698,2]
[384443497,1757418648647,-480.0,0.00013698,2]
[384443499,1757418648658,-586.32,0.00013698,2]
[384443501,1757418648667,-480.0,0.00013698,2]
[384443503,1757418648677,-524.63870303,0.00013698,2]
[384443505,1757418648687,-480.0,0.00013698,2]
[384443507,1757418648697,-480.0,0.00013698,2]
[384443509,1757418648706,-480.0,0.00013698,2]
[384443511,1757418648715,-480.0,0.00013698,2]
[384443513,1757418648724,-480.0,0.00013698,2]
[384443515,1757418648734,-480.0,0.00013698,2]
[384443517,1757418648743,-480.0,0.00013698,2]
[384443519,1757418648752,-480.0,0.00013698,2]
[384443521,1757418648762,-481.02814707,0.00013698,2]
[384443523,1757418648771,-480.0,0.00013698,2]
[384443525,1757418648780,-480.0,0.00013698,2]
[384443526,1757418648790,-485.46850804,0.00013698,2]
[384443528,1757418648800,-480.0,0.00013698,2]
[384443530,1757418648810,-481.80064889,0.00013698,2]
[384443532,1757418648820,-480.0,0.00013698,2]
[384443534,1757418648829,-484.76227716,0.00013698,2]
[384443536,1757418648839,-480.0,0.00013698,2]
[384443538,1757418648848,-482.80431564,0.00013698,2]
[384443553,1757418648860,-480.0,0.00013698,2]
[384443556,1757418649014,-480.0,0.00013698,2]
[384443558,1757418649023,-480.0,0.00013698,2]